lending/lending_fUSD_20251121
["ID","MTS","AMOUNT","RATE_DAILY","PERIOD"]
[394598711,1763747797647,-572.48020654,0.00052876,120]
[394598712,1763747797690,-500.0,0.00052876,120]
[394598713,1763747797732,-244.06854071,0.00052876,120]
[394598714,1763747797774,-449.46711945,0.00052876,120]
[394598715,1763747797822,-500.0,0.00052876,120]
[394598716,1763747797862,-500.0,0.00052876,120]
[394598717,1763747797903,-500.0,0.00052876,120]
[394598718,1763747797945,-500.0,0.00052876,120]
[394598719,1763747797986,-976.07,0.00052876,120]
[394598720,1763747798026,-1102.73,0.00052876,120]
[394598721,1763747798070,-500.0,0.00052876,120]
[394598722,1763747798111,-1200.73,0.00052876,120]
[394598723,1763747798153,-1000.34,0.00052876,120]
[394598724,1763747798195,-500.0,0.00052876,120]
[394598725,1763747798236,-1155.3,0.00052876,120]
[394598726,1763747798279,-500.0,0.00052876,120]
[394598727,1763747798324,-1052.15,0.00052876,120]
[394598728,1763747798367,-500.0,0.00052876,120]
[394598729,1763747798413,-760.56,0.00052876,120]
[394598730,1763747798458,-500.0,0.00052876,120]
[394598731,1763747798502,-500.0,0.00052876,120]
[394598732,1763747798545,-500.0,0.00052876,120]
[394598733,1763747798589,-1214.77,0.00052876,120]
[394598734,1763747798632,-500.0,0.00052876,120]
[394598735,1763747798673,-313.15446136,0.00052876,120]
[394598736,1763747798715,-500.0,0.00052876,120]
[394598737,1763747798756,-500.0,0.00052876,120]
[394598738,1763747798796,-500.0,0.00052876,120]
[394598739,1763747798837,-1106.22,0.00052876,120]
[394598740,1763747798878,-500.0,0.00052876,120]
[394598741,1763747798918,-500.0,0.00052876,120]
[394598742,1763747798958,-500.0,0.00052876,120]
[394598743,1763747798999,-503.99718056,0.00052876,120]
[394598744,1763747799042,-500.0,0.00052876,120]
[394598745,1763747799085,-500.0,0.00052876,120]
[394598746,1763747799128,-532.54958822,0.00052876,120]
[394598747,1763747799170,-500.0,0.00052876,120]
[394598748,1763747799210,-500.0,0.00052876,120]
[394598749,1763747799249,-572.96971836,0.00052876,120]
[394598750,1763747799287,-319.03729878,0.00052876,120]
[394598751,1763747799324,-518.08685433,0.00052876,120]
[394598752,1763747799364,-245.65815319,0.00052876,120]
[394598753,1763747799404,-500.0,0.00052876,120]
[394598754,1763747799451,-500.0,0.00052876,120]
[394598755,1763747799494,-500.0,0.00052876,120]
[394598756,1763747799535,-500.0,0.00052876,120]
[394598757,1763747799581,-500.0,0.00052876,120]
[394598758,1763747799623,-500.0,0.00052876,120]
[394598759,1763747799664,-500.0,0.00052876,120]
[394598760,1763747799703,-500.0,0.00052876,120]
[394598761,1763747799746,-500.0,0.00052876,120]
[394598762,1763747799789,-500.0,0.00052876,120]
[394598763,1763747799830,-500.0,0.00052876,120]
[394598764,1763747799872,-500.0,0.00052876,120]
[394598765,1763747799912,-500.0,0.00052876,120]
[394598766,1763747799954,-500.0,0.00052876,120]
[394598767,1763747799993,-510.09774528,0.00052876,120]
[394598768,1763747800032,-500.0,0.00052876,120]
[394598769,1763747800072,-503.1,0.00052876,120]
[394598770,1763747800111,-1170.16,0.00052876,120]
[394598771,1763747800151,-286.69147684,0.00052876,120]
[394598772,1763747800187,-957.66,0.00052876,120]
[394598773,1763747800224,-500.0,0.00052876,120]
[394598774,1763747800262,-523.54959331,0.00052876,120]
[394598775,1763747800302,-500.0,0.00052876,120]
[394598776,1763747800343,-500.0,0.00052876,120]
[394598777,1763747800382,-1000.0,0.00052876,120]
[394598778,1763747800420,-500.0,0.00052876,120]
[394598779,1763747800460,-500.0,0.00052876,120]
[394598780,1763747800500,-500.0,0.00052876,120]
[394598781,1763747800544,-2407.97,0.00052876,120]
[394598782,1763747800586,-500.0,0.00052876,120]
[394598783,1763747800629,-973.1,0.00052876,120]
[394598784,1763747800673,-500.0,0.00052876,120]
[394598785,1763747800716,-500.0,0.00052876,120]
[394598786,1763747800760,-878.4,0.00052876,120]
[394598787,1763747800800,-500.0,0.00052876,120]
[394598788,1763747800840,-500.0,0.00052876,120]
[394598789,1763747800880,-500.0,0.00052876,120]
[394598790,1763747800921,-500.0,0.00052876,120]
[394598791,1763747800961,-500.0,0.00052876,120]
[394598792,1763747801186,-500.0,0.00052876,120]
[394598793,1763747801228,-500.0,0.00052876,120]
[394598794,1763747801269,-500.0,0.00052876,120]
[394598795,1763747801308,-575.76,0.00052876,120]
[394598796,1763747801349,-516.47115776,0.00052876,120]
[394598797,1763747801389,-500.0,0.00052876,120]
[394598798,1763747801427,-500.0,0.00052876,120]
[394598799,1763747801466,-873.91,0.00052876,120]
[394598800,1763747801505,-500.0,0.00052876,120]
[394598801,1763747801546,-500.0,0.00052876,120]
[394598802,1763747801591,-623.24793632,0.00052876,120]
[394598803,1763747801632,-500.0,0.00052876,120]
[394598804,1763747801674,-500.0,0.00052876,120]
[394598805,1763747801715,-500.0,0.00052876,120]
[394598806,1763747801754,-500.0,0.00052876,120]
[394598807,1763747801794,-500.0,0.00052876,120]
[394598808,1763747801832,-1105.99,0.00052876,120]
[394598809,1763747801871,-500.0,0.00052876,120]
[394598810,1763747801909,-500.0,0.00052876,120]
[394598811,1763747801948,-500.0,0.00052876,120]
[394598812,1763747801986,-500.0,0.00052876,120]
[394598813,1763747802024,-845.17,0.00052876,120]
[394598814,1763747802063,-500.0,0.00052876,120]
[394598815,1763747802099,-500.0,0.00052876,120]
[394598816,1763747802137,-500.0,0.00052876,120]
[394598817,1763747802175,-552.39302154,0.00052876,120]
[394598818,1763747802222,-513.56,0.00052876,120]
[394598819,1763747802262,-500.0,0.00052876,120]
[394598820,1763747802300,-500.0,0.00052876,120]
[394598821,1763747802340,-500.0,0.00052876,120]
[394598822,1763747802379,-500.0,0.00052876,120]
[394598823,1763747802418,-724.48,0.00052876,120]
[394598824,1763747802460,-500.0,0.00052876,120]
[394598825,1763747802502,-1506.7,0.00052876,60]
[394598826,1763747802546,-500.0,0.00052876,120]
[394598827,1763747802587,-808.43,0.00052876,120]
[394598828,1763747802629,-656.18,0.00052876,120]
[394598829,1763747802671,-929.35,0.00052876,120]
[394598830,1763747802715,-504.82211499,0.00052876,120]
[394598831,1763747802755,-500.0,0.00052876,120]
[394598832,1763747802794,-690.86,0.00052876,120]
[394598833,1763747802833,-500.0,0.00052876,120]
[394598834,1763747802873,-500.0,0.00052876,120]
[394598835,1763747802913,-650.71,0.00052876,120]
[394598836,1763747802953,-500.0,0.00052876,120]
[394598837,1763747802992,-500.0,0.00052876,120]
[394598838,1763747803031,-500.0,0.00052876,120]
[394598839,1763747803070,-451.05,0.00052876,120]
[394598840,1763747803108,-707.79,0.00052876,120]
[394598841,1763747803148,-500.0,0.00052876,120]
[394598842,1763747803187,-761.86,0.00052876,120]
[394598843,1763747803224,-500.0,0.00052876,120]
[394598844,1763747803261,-984.62,0.00052876,120]
[394598845,1763747803297,-507.94400732,0.00052876,120]
[394598846,1763747803336,-693.27,0.00052876,120]
[394598847,1763747803375,-500.0,0.00052876,120]
[394598848,1763747803415,-380.71900277,0.00052876,120]
[394598849,1763747803459,-500.0,0.00052876,30]
[394598850,1763747803502,-500.0,0.00052876,120]
[394598851,1763747803548,-500.0,0.00052876,120]
[394598852,1763747803592,-500.0,0.00052876,120]
[394598853,1763747803635,-1079.48,0.00052876,120]
[394598854,1763747803683,-500.0,0.00052876,120]
[394598855,1763747803740,-500.0,0.00052876,120]
[394598856,1763747803784,-500.0,0.00052876,120]
[394598857,1763747803829,-500.0,0.00052876,120]
[394598858,1763747803872,-500.0,0.00052876,120]
[394598859,1763747803916,-553.23,0.00052876,120]
[394598860,1763747803960,-832.22,0.00052876,120]
[394598861,1763747804003,-500.0,0.00052876,120]
[394598862,1763747804048,-906.02,0.00052876,120]
[394598863,1763747804089,-592.29,0.00052876,120]
[394598864,1763747804129,-500.0,0.00052876,120]
[394598865,1763747804170,-500.0,0.00052876,120]
[394598866,1763747804212,-500.0,0.00052876,120]
[394598867,1763747804264,-500.0,0.00052876,60]
[394598868,1763747804307,-500.0,0.00052876,120]
[394598869,1763747804349,-827.73,0.00052876,30]
[394598870,1763747804389,-500.0,0.00052876,120]
[394598871,1763747804431,-736.06,0.00052876,120]
[394598872,1763747804470,-500.0,0.00052876,120]
[394598873,1763747804516,-500.0,0.00052876,120]
[394598874,1763747804562,-589.81788739,0.00052876,120]
[394598875,1763747804604,-1355.84,0.00052876,120]
[394598876,1763747804646,-500.0,0.00052876,120]
[394598877,1763747804686,-500.0,0.00052876,120]
[394598878,1763747804726,-500.0,0.00052876,120]
[394598879,1763747804765,-500.0,0.00052876,120]
[394598880,1763747804804,-500.0,0.00052876,120]
[394598881,1763747804844,-741.62,0.00052876,120]
[394598882,1763747804883,-500.0,0.00052876,120]
[394598883,1763747804924,-500.0,0.00052876,120]
[394598884,1763747804963,-946.76,0.00052876,120]
[394598885,1763747805003,-500.0,0.00052876,120]
[394598886,1763747805045,-1462.58,0.00052876,120]
[394598887,1763747805086,-500.0,0.00052876,120]
[394598888,1763747805125,-423.7522579,0.00052876,120]
[394598889,1763747805165,-1132.61,0.00052876,120]
[394598890,1763747805206,-500.0,0.00052876,120]
[394598891,1763747805247,-500.0,0.00052876,120]
[394598892,1763747805286,-500.0,0.00052876,120]
[394598893,1763747805328,-500.0,0.00052876,120]
[394598894,1763747805368,-500.0,0.00052876,120]
[394598895,1763747805584,-500.0,0.00052876,120]
[394598896,1763747805626,-500.0,0.00052876,120]
[394598897,1763747805667,-507.14616731,0.00052876,30]
[394598898,1763747805707,-1342.9,0.00052876,120]
[394598899,1763747805747,-720.54,0.00052876,120]
[394598900,1763747805786,-533.35424522,0.00052876,120]
[394598901,1763747805824,-500.0,0.00052876,120]
[394598902,1763747805862,-500.0,0.00052876,120]
[394598903,1763747805900,-500.0,0.00052876,120]
[394598904,1763747805937,-500.0,0.00052876,120]
[394598905,1763747805974,-500.0,0.00052876,120]
[394598906,1763747806010,-727.09,0.00052876,120]
[394598907,1763747806047,-500.0,0.00052876,120]
[394598908,1763747806085,-500.0,0.00052876,120]
[394598909,1763747806122,-819.94,0.00052876,120]
[394598910,1763747806162,-518.41850435,0.00052876,120]
[394598911,1763747806204,-1000.0,0.00052876,120]
[394598912,1763747806242,-1107.01,0.00052876,120]
[394598913,1763747806278,-855.69,0.00052876,120]
[394598914,1763747806315,-500.0,0.00052876,120]
[394598915,1763747806350,-500.0,0.00052876,120]
[394598916,1763747806387,-769.88,0.00052876,120]
[394598917,1763747806424,-506.6644801,0.00052876,120]
[394598918,1763747806463,-723.27,0.00052876,120]
[394598919,1763747806502,-500.0,0.00052876,120]
[394598920,1763747806540,-500.0,0.00052876,120]
[394598921,1763747806579,-500.0,0.00052876,120]
[394598922,1763747806618,-500.0,0.00052876,120]
[394598923,1763747806658,-1304.3,0.00052876,120]
[394598924,1763747806696,-500.0,0.00052876,120]
[394598925,1763747806734,-724.08,0.00052876,120]
[394598926,1763747806771,-950.48,0.00052876,120]
[394598927,1763747806808,-500.0,0.00052876,120]
[394598928,1763747806848,-500.0,0.00052876,120]
[394598929,1763747806886,-528.28,0.00052876,120]
[394598930,1763747806924,-500.0,0.00052876,120]
[394598931,1763747806961,-901.14,0.00052876,120]
[394598932,1763747806998,-500.0,0.00052876,120]
[394598933,1763747807033,-500.0,0.00052876,120]
[394598934,1763747807071,-1573.04,0.00052876,120]
[394598935,1763747807108,-503.16502645,0.00052876,120]
[394598936,1763747807145,-1203.66,0.00052876,120]
[394598937,1763747807183,-500.0,0.00052876,120]
[394598938,1763747807219,-500.0,0.00052876,120]
[394598939,1763747807256,-500.0,0.00052876,120]
[394598940,1763747807294,-500.0,0.00052876,120]
[394598941,1763747807333,-1601.91,0.00052876,120]
[394598942,1763747807373,-500.0,0.00052876,120]
[394598943,1763747807412,-500.0,0.00052876,120]
[394598944,1763747807452,-500.0,0.00052876,120]
[394598945,1763747807493,-666.68,0.00052876,120]
[394598946,1763747807532,-808.0,0.00052876,120]
[394598947,1763747807571,-500.0,0.00052876,120]
[394598948,1763747807609,-500.0,0.00052876,120]
[394598949,1763747807645,-500.0,0.00052876,120]
[394598950,1763747807682,-500.0,0.00052876,120]
[394598951,1763747807720,-1603.08,0.00052876,120]
[394598952,1763747807759,-500.0,0.00052876,120]
[394598953,1763747807799,-169.74735979,0.00052876,120]
[394598954,1763747807837,-500.0,0.00052876,120]
[394598955,1763747807875,-751.13,0.00052876,120]
[394598956,1763747807913,-500.0,0.00052876,120]
[394598957,1763747807949,-500.0,0.00052876,120]
[394598958,1763747807985,-500.0,0.00052876,120]
[394598959,1763747808023,-500.0,0.00052876,120]
[394598960,1763747808060,-500.32432685,0.00052876,120]
[394598961,1763747808094,-500.0,0.00052876,120]
[394598962,1763747808134,-500.0,0.00052876,120]
[394598963,1763747808171,-416.76796905,0.00052876,120]
[394598964,1763747808206,-763.27,0.00052876,120]
[394598965,1763747808243,-500.0,0.00052876,120]
[394598966,1763747808279,-571.84,0.00052876,120]
[394598967,1763747808318,-501.03708982,0.00052876,120]
[394598968,1763747808358,-500.0,0.00052876,120]
[394598969,1763747808401,-500.0,0.00052876,120]
[394598970,1763747808441,-1309.95,0.00052876,120]
[394598971,1763747808479,-500.0,0.00052876,120]
[394598972,1763747808523,-500.0,0.00052876,120]
[394598973,1763747808566,-500.0,0.00052876,120]
[394598974,1763747808607,-804.84,0.00052876,120]
[394598975,1763747808650,-500.0,0.00052876,60]
[394598976,1763747808688,-500.0,0.00052876,120]
[394598977,1763747808725,-590.59,0.00052876,120]
[394598978,1763747808767,-590.71946805,0.00052876,120]
[394598979,1763747808806,-500.0,0.00052876,120]
[394598980,1763747808843,-603.22827408,0.00052876,120]
[394598981,1763747808880,-500.0,0.00052876,120]
[394598982,1763747808918,-500.0,0.00052876,120]
[394598983,1763747808955,-500.0,0.00052876,120]
[394598984,1763747808993,-649.35,0.00052876,120]
[394598985,1763747809030,-500.0,0.00052876,120]
[394598986,1763747809066,-1116.21,0.00052876,120]
[394598987,1763747809104,-500.0,0.00052876,120]
[394598988,1763747809141,-500.0,0.00052876,120]
[394598989,1763747809177,-500.0,0.00052876,120]
[394598990,1763747809213,-500.0,0.00052876,120]
[394598991,1763747809248,-500.0,0.00052876,120]
[394598992,1763747809288,-500.0,0.00052876,120]
[394598993,1763747809336,-981.19,0.00052876,60]
[394598994,1763747809386,-605.43,0.00052876,120]
[394598995,1763747809447,-500.0,0.00052876,120]
[394598996,1763747809504,-941.61,0.00052876,120]
[394598997,1763747809784,-1341.05,0.00052876,120]
[394598998,1763747809856,-778.38,0.00052876,120]
[394598999,1763747809901,-500.0,0.00052876,120]
[394599000,1763747809943,-500.0,0.00052876,120]
[394599001,1763747809983,-648.37,0.00052876,120]
[394599002,1763747810025,-824.18,0.00052876,120]
[394599003,1763747810065,-500.0,0.00052876,120]
[394599004,1763747810104,-500.0,0.00052876,120]
[394599005,1763747810144,-500.0,0.00052876,120]
[394599006,1763747810184,-500.0,0.00052876,120]
[394599007,1763747810225,-400.0,0.00052876,120]
[394599008,1763747810265,-936.91,0.00052876,120]
[394599009,1763747810306,-842.26,0.00052876,120]
[394599010,1763747810344,-500.0,0.00052876,120]
[394599011,1763747810383,-500.0,0.00052876,120]
[394599012,1763747810424,-504.46634416,0.00052876,120]
[394599013,1763747810464,-500.0,0.00052876,120]
[394599014,1763747810503,-500.0,0.00052876,120]
[394599015,1763747810543,-1178.99,0.00052876,120]
[394599016,1763747810585,-869.45,0.00052876,120]
[394599017,1763747810625,-497.62639003,0.00052876,120]
[394599018,1763747810662,-500.0,0.00052876,120]
[394599019,1763747810701,-987.93,0.00052876,120]
[394599020,1763747810739,-500.0,0.00052876,120]
[394599021,1763747810777,-500.0,0.00052876,120]
[394599022,1763747810813,-500.0,0.00052876,120]
[394599023,1763747810850,-500.0,0.00052876,120]
[394599024,1763747810888,-500.0,0.00052876,120]
[394599025,1763747810927,-500.0,0.00052876,120]
[394599026,1763747810967,-394.64534129,0.00052876,120]
[394599027,1763747811007,-500.0,0.00052876,120]
[394599028,1763747811053,-500.0,0.00052876,120]
[394599029,1763747811092,-500.0,0.00052876,120]
[394599030,1763747811134,-810.32,0.00052876,120]
[394599031,1763747811175,-500.0,0.00052876,120]
[394599032,1763747811218,-1080.27,0.00052876,120]
[394599033,1763747811257,-693.56,0.00052876,120]
[394599034,1763747811294,-502.00807201,0.00052876,120]
[394599035,1763747811334,-1946.82,0.00052876,120]
[394599036,1763747811372,-500.0,0.00052876,120]
[394599037,1763747811409,-500.0,0.00052876,120]
[394599038,1763747811449,-500.0,0.00052876,120]
[394599039,1763747811491,-240.64666327,0.00052876,120]
[394599040,1763747811532,-500.0,0.00052876,120]
[394599041,1763747811571,-500.0,0.00052876,120]
[394599042,1763747811612,-708.1,0.00052876,120]
[394599043,1763747811651,-500.0,0.00052876,120]
[394599044,1763747811689,-992.78,0.00052876,120]
[394599045,1763747811730,-500.0,0.00052876,120]
[394599046,1763747811768,-500.0,0.00052876,120]
[394599047,1763747811807,-500.0,0.00052876,120]
[394599048,1763747811845,-713.59,0.00052876,120]
[394599049,1763747811883,-508.5,0.00052876,120]
[394599050,1763747811922,-500.0,0.00052876,120]
[394599051,1763747811961,-500.0,0.00052876,120]
[394599052,1763747812000,-500.0,0.00052876,120]
[394599053,1763747812037,-500.0,0.00052876,120]
[394599054,1763747812074,-500.0,0.00052876,120]
[394599055,1763747812107,-1028.78,0.00052876,120]
[394599056,1763747812141,-881.59,0.00052876,120]
[394599057,1763747812176,-500.0,0.00052876,120]
[394599058,1763747812210,-512.10386285,0.00052876,120]
[394599059,1763747812243,-500.0,0.00052876,120]
[394599060,1763747812278,-500.0,0.00052876,120]
[394599061,1763747812313,-500.0,0.00052876,120]
[394599062,1763747812347,-575.97,0.00052876,120]
[394599063,1763747812382,-1034.61,0.00052876,120]
[394599064,1763747812417,-500.0,0.00052876,120]
[394599065,1763747812451,-1384.33,0.00052876,120]
[394599066,1763747812488,-500.0,0.00052876,120]
[394599067,1763747812529,-500.0,0.00052876,120]
[394599068,1763747812573,-500.0,0.00052876,120]
[394599069,1763747812614,-500.0,0.00052876,120]
[394599070,1763747812653,-781.65,0.00052876,120]
[394599071,1763747812691,-500.0,0.00052876,120]
[394599072,1763747812728,-1450.24,0.00052876,120]
[394599073,1763747812767,-510.67,0.00052876,120]
[394599074,1763747812807,-749.47,0.00052876,120]
[394599075,1763747812847,-500.0,0.00052876,120]
[394599076,1763747812885,-500.0,0.00052876,120]
[394599077,1763747812928,-500.0,0.00052876,120]
[394599078,1763747812967,-500.0,0.00052876,120]
[394599079,1763747813005,-500.0,0.00052876,120]
[394599080,1763747813043,-500.0,0.00052876,120]
[394599081,1763747813083,-500.0,0.00052876,120]
[394599082,1763747813122,-900.52,0.00052876,120]
[394599083,1763747813162,-500.0,0.00052876,120]
[394599084,1763747813201,-801.13,0.00052876,120]
[394599085,1763747813242,-500.0,0.00052876,120]
[394599086,1763747813280,-500.0,0.00052876,120]
[394599087,1763747813320,-500.0,0.00052876,120]
[394599088,1763747813359,-500.0,0.00052876,120]
[394599089,1763747813399,-507.56729481,0.00052876,120]
[394599090,1763747813437,-530.08,0.00052876,120]
[394599091,1763747813476,-500.0,0.00052876,120]
[394599092,1763747813519,-500.0,0.00052876,120]
[394599093,1763747813566,-500.0,0.00052876,120]
[394599094,1763747813609,-529.37,0.00052876,120]
[394599095,1763747813651,-500.0,0.00052876,120]
[394599096,1763747813852,-500.0,0.00052876,120]
[394599097,1763747813899,-649.62,0.00052876,120]
[394599098,1763747813941,-500.0,0.00052876,120]
[394599099,1763747813982,-500.0,0.00052876,120]
[394599100,1763747814024,-2628.55,0.00052876,120]
[394599101,1763747814063,-500.0,0.00052876,120]
[394599102,1763747814105,-186.53577123,0.00052876,120]
[394599103,1763747814145,-534.62,0.00052876,120]
[394599104,1763747814184,-500.0,0.00052876,120]
[394599105,1763747814223,-500.0,0.00052876,120]
[394599106,1763747814263,-610.92,0.00052876,120]
[394599107,1763747814302,-500.0,0.00052876,120]
[394599108,1763747814342,-573.78,0.00052876,120]
[394599109,1763747814380,-513.31267302,0.00052876,120]
[394599110,1763747814421,-582.27,0.00052876,120]
[394599111,1763747814463,-500.0,0.00052876,120]
[394599112,1763747814504,-688.14,0.00052876,120]
[394599113,1763747814545,-500.0,0.00052876,120]
[394599114,1763747814586,-500.0,0.00052876,120]
[394599115,1763747814627,-500.0,0.00052876,120]
[394599116,1763747814667,-605.96,0.00052876,120]
[394599117,1763747814705,-500.0,0.00052876,120]
[394599118,1763747814744,-500.0,0.00052876,120]
[394599119,1763747814782,-500.0,0.00052876,120]
[394599120,1763747814818,-500.0,0.00052876,120]
[394599121,1763747814854,-1066.23,0.00052876,120]
[394599122,1763747814892,-500.0,0.00052876,120]
[394599123,1763747814929,-500.0,0.00052876,120]
[394599124,1763747814968,-500.0,0.00052876,120]
[394599125,1763747815005,-1001.2,0.00052876,120]
[394599126,1763747815045,-500.0,0.00052876,120]
[394599127,1763747815087,-696.75,0.00052876,120]
[394599128,1763747815124,-500.0,0.00052876,120]
[394599129,1763747815161,-500.0,0.00052876,120]
[394599130,1763747815198,-500.0,0.00052876,120]
[394599131,1763747815235,-1029.84,0.00052876,120]
[394599132,1763747815273,-500.0,0.00052876,120]
[394599133,1763747815313,-500.0,0.00052876,120]
[394599134,1763747815352,-500.0,0.00052876,120]
[394599135,1763747815392,-751.21,0.00052876,120]
[394599136,1763747815433,-1143.16,0.00052876,120]
[394599137,1763747815471,-500.0,0.00052876,120]
[394599138,1763747815519,-838.21,0.00052876,120]
[394599139,1763747815565,-1113.96,0.00052876,120]
[394599140,1763747815606,-1397.82,0.00052876,120]
[394599141,1763747815647,-500.0,0.00052876,120]
[394599142,1763747815688,-500.0,0.00052876,120]
[394599143,1763747815727,-500.0,0.00052876,120]
[394599144,1763747815769,-500.0,0.00052876,120]
[394599145,1763747815814,-1097.77,0.00052876,120]
[394599146,1763747815858,-1087.27,0.00052876,120]
[394599147,1763747815900,-500.0,0.00052876,120]
[394599148,1763747815942,-500.0,0.00052876,120]
[394599149,1763747815982,-500.0,0.00052876,120]
[394599150,1763747816020,-500.0,0.00052876,120]
[394599151,1763747816056,-500.0,0.00052876,120]
[394599152,1763747816095,-500.0,0.00052876,120]
[394599153,1763747816134,-500.0,0.00052876,120]
[394599154,1763747816172,-518.29815862,0.00052876,120]
[394599155,1763747816210,-500.0,0.00052876,120]
[394599156,1763747816247,-500.0,0.00052876,120]
[394599157,1763747816286,-500.0,0.00052876,120]
[394599158,1763747816324,-500.0,0.00052876,120]
[394599159,1763747816363,-500.0,0.00052876,120]
[394599160,1763747816400,-500.0,0.00052876,120]
[394599161,1763747816437,-500.0,0.00052876,120]
[394599162,1763747816475,-745.2,0.00052876,120]
[394599163,1763747816516,-823.26,0.00052876,120]
[394599164,1763747816559,-509.74,0.00052876,120]
[394599165,1763747816600,-503.59,0.00052876,120]
[394599166,1763747816641,-500.0,0.00052876,120]
[394599167,1763747816683,-1132.92,0.00052876,120]
[394599168,1763747816725,-530.77118682,0.00052876,120]
[394599169,1763747816764,-1039.18,0.00052876,120]
[394599170,1763747816800,-644.23,0.00052876,120]
[394599171,1763747816839,-500.0,0.00052876,120]
[394599172,1763747816879,-500.0,0.00052876,120]
[394599173,1763747816916,-1146.28,0.00052876,120]
[394599174,1763747816952,-856.07,0.00052876,120]
[394599175,1763747816988,-500.0,0.00052876,120]
[394599176,1763747817026,-192.71206708,0.00052876,120]
[394599177,1763747817069,-500.0,0.00052876,120]
[394599178,1763747817107,-500.0,0.00052876,120]
[394599179,1763747817145,-500.0,0.00052876,120]
[394599180,1763747817182,-500.0,0.00052876,120]
[394599181,1763747817227,-500.0,0.00052876,120]
[394599182,1763747817269,-500.0,0.00052876,120]
[394599183,1763747817311,-500.0,0.00052876,120]
[394599184,1763747817356,-500.0,0.00052876,120]
[394599185,1763747817400,-500.0,0.00052876,120]
[394599186,1763747817444,-1029.38,0.00052876,120]
[394599187,1763747817492,-734.53,0.00052876,120]
[394599188,1763747817537,-500.0,0.00052876,120]
[394599189,1763747817581,-998.72,0.00052876,120]
[394599190,1763747817624,-500.0,0.00052876,120]
[394599191,1763747817667,-500.0,0.00052876,120]
[394599192,1763747817947,-500.0,0.00052876,120]
[394599193,1763747817990,-500.0,0.00052876,120]
[394599194,1763747818028,-1353.79,0.00052876,30]
[394599195,1763747818066,-500.0,0.00052876,120]
[394599196,1763747818110,-500.0,0.00052876,120]
[394599197,1763747818152,-328.4722613,0.00052876,120]
[394599198,1763747818192,-1683.58,0.00052876,120]
[394599199,1763747818231,-500.0,0.00052876,120]
[394599200,1763747818271,-4331.94,0.00052876,120]
[394599201,1763747818310,-500.0,0.00052876,120]
[394599202,1763747818348,-525.01,0.00052876,120]
[394599203,1763747818385,-500.0,0.00052876,120]
[394599204,1763747818428,-500.0,0.00052876,120]
[394599205,1763747818466,-1471.29,0.00052876,120]
[394599206,1763747818504,-228.43421479,0.00052876,120]
[394599207,1763747818543,-500.0,0.00052876,120]
[394599208,1763747818584,-500.0,0.00052876,120]
[394599209,1763747818626,-500.0,0.00052876,120]
[394599210,1763747818667,-704.3,0.00052876,120]